bitfinex/quotes_ETHUSD_20250219
["timestamp","ask_amount","ask_price","bid_price","bid_amount"]
[1739995316517,3.95158,2717.7,2717.1,3.68029]
[1739995316727,3.67981,2717.6,2717.0,4.49248]
[1739995317417,8.84083176,2717.8,2717.0,4.49246]
[1739995317927,5.16122176,2717.8,2717.2,3.68015]
[1739995318089,3.67971,2717.7,2717.1,3.68039]
[1739995318290,3.6798,2717.6,2717.0,4.49244]
[1739995318517,3.6798,2717.6,2717.0,3.68044]
[1739995318727,3.6798,2717.6,2716.8,0.537]
[1739995318931,3.6798,2717.6,2716.9,0.66612]
[1739995319232,0.8107,2717.2,2716.8,3.6808]
[1739995319597,0.8107,2717.5,2716.6,3.68107]
[1739995319926,0.8107,2717.5,2717.1,3.68032]
[1739995320629,0.8107,2717.5,2716.7,5.37]
[1739995320830,5.22161176,2717.8,2717.2,3.68018]
[1739995321032,3.67974,2717.6,2717.1,3.68032]
[1739995321216,3.67974,2717.6,2716.9,9.05057]
[1739995321601,3.67974,2717.6,2717.0,3.68042]
[1739995321902,3.67958,2717.7,2717.0,3.68042]
[1739995322101,1.54215176,2717.8,2717.0,1.4418193]
[1739995322344,0.8107,2717.8,2717.1,3.68039]
[1739995322648,4.49017,2717.8,2717.2,3.68018]
[1739995322951,3.67958,2717.7,2717.1,3.68039]
[1739995323150,0.8107,2717.8,2716.9,5.37]
[1739995323704,3.95104,2718.1,2717.4,3.67988]
[1739995323934,4.69025365,2718.1,2717.4,3.67988]
[1739995324160,4.41825365,2718.1,2717.5,3.67983]
[1739995324446,0.73921365,2718.1,2717.7,3.67947]
[1739995324760,0.8107,2718.2,2717.7,3.67947]
[1739995325110,4.48961,2718.2,2717.5,3.6798]
[1739995325448,3.67908,2718.1,2717.5,4.66299]
[1739995325849,3.67924,2718.0,2717.4,9.04998]
[1739995326451,3.67939,2717.9,2717.4,5.37]
[1739995326953,4.4897,2718.2,2717.4,5.37]
[1739995327155,0.8107,2718.2,2717.8,3.67944]
[1739995327511,0.72717529,2718.4,2718.2,3.67884]
[1739995327711,0.005,2718.4,2718.3,3.67876]
[1739995328350,0.005,2718.4,2718.1,3.6789]
[1739995328522,0.005,2718.4,2718.0,3.67917]
[1739995328723,0.005,2718.4,2718.0,8.341877]
[1739995329123,0.005,2718.4,2718.0,4.662707]
[1739995329520,0.005,2718.4,2718.0,0.983647]
[1739995329910,0.005,2718.4,2717.9,5.37]
[1739995329911,4.45773,2718.3,2717.9,5.37]
[1739995330137,8.13662,2718.3,2717.9,5.37]
[1739995330348,4.45773,2718.3,2717.9,5.37]
[1739995330550,8.1366,2718.3,2717.9,5.37]
[1739995331137,0.7789,2718.3,2717.9,5.37]
[1739995331365,0.005,2718.4,2718.0,0.537]
[1739995331518,3.67879,2718.3,2718.0,0.537]
[1739995331717,3.67879,2718.3,2717.9,5.37]
[1739995331940,0.005,2718.4,2717.9,5.37]
[1739995332134,0.005,2718.4,2718.3,3.67876]
[1739995332465,0.005,2718.4,2718.3,9.04876]
[1739995332620,0.005,2718.4,2718.3,9.82306]
[1739995332817,0.005,2718.4,2718.3,11.173256]
[1739995333567,0.005,2718.4,2718.3,15.11591542]
[1739995333772,0.005,2718.4,2718.3,27.03591542]
[1739995335949,1.02721887,2719.7,2719.2,3.67749]
[1739995336159,0.273,2719.7,2719.3,0.367749]
[1739995336321,0.273,2719.7,2719.2,3.67749]
[1739995337258,3.94997,2719.7,2719.1,5.37]
[1739995337474,0.273,2719.7,2719.1,5.37]
[1739995337670,0.7536,2719.3,2719.1,5.37]
[1739995338165,0.273,2719.6,2719.1,5.37]
[1739995338544,3.95009,2719.6,2719.1,5.37]
[1739995338762,3.67715,2719.5,2719.1,5.37]
[1739995338959,3.67755,2719.2,2719.1,5.37]
[1739995339182,3.67792,2719.0,2718.3,5.852656]
[1739995339314,3.67791,2719.0,2718.3,11.222656]
[1739995339827,7.35603,2718.9,2718.3,7.543996]
[1739995340040,7.35603,2718.9,2718.3,6.720196]
[1739995340233,3.67798,2718.9,2718.3,6.720196]
[1739995340458,0.7536,2719.2,2717.9,5.37]
[1739995340459,3.67822,2718.7,2717.9,5.37]
[1739995340655,1.0266,2718.8,2717.9,5.37]
[1739995340656,3.67849,2718.5,2717.9,5.37]
[1739995341154,3.67849,2718.5,2717.9,9.04931]
[1739995341574,4.43198,2718.6,2717.9,9.04931]
[1739995341774,4.43198,2718.6,2718.0,0.904931]
[1739995342182,3.67851,2718.5,2718.0,0.904931]
[1739995342683,7.35734,2718.4,2717.9,5.37]
[1739995342885,3.67856,2718.5,2717.9,5.37]
[1739995343288,4.43203,2718.6,2717.9,5.37]
[1739995343452,3.67864,2718.4,2717.9,5.37]
[1739995344144,4.43203,2718.6,2717.9,5.37]
[1739995344348,4.43203,2718.6,2718.0,3.67915]
[1739995344556,8.11049,2718.6,2718.0,3.67915]
[1739995344761,4.43203,2718.6,2717.9,9.0493]
[1739995345042,3.67852,2718.5,2717.9,5.37]
[1739995345249,3.67852,2718.5,2717.9,9.0493]
[1739995346792,8.11051,2718.6,2718.0,3.67917]
[1739995346989,6.11438725,2719.2,2718.1,3.67904]
[1739995347193,0.7824,2719.1,2718.8,3.67797]
[1739995347352,0.7824,2719.5,2718.5,0.8009]
[1739995347551,0.7824,2719.5,2718.6,1.01135594]
[1739995348088,0.7824,2719.5,2718.8,3.67796]
[1739995348392,0.7824,2719.5,2718.9,3.67795]
[1739995348591,4.45954,2719.5,2718.9,7.35582]
[1739995348792,4.45954,2719.5,2718.9,3.67787]
[1739995348966,4.45954,2719.5,2719.0,3.67781]
[1739995349287,0.7824,2719.5,2719.0,3.67782]
[1739995349504,0.7824,2719.8,2719.1,4.47857]
[1739995349668,1.0554,2719.8,2719.3,3.67734]
[1739995350295,1.0554,2719.8,2719.1,6.1709]
[1739995350296,0.7824,2719.8,2719.1,6.1709]
[1739995350494,0.7532,2720.4,2719.8,3.67662]
[1739995350711,0.7532,2720.4,2719.7,3.67676]
[1739995350863,1.29878336,2720.3,2719.7,3.67676]
[1739995351063,0.74878336,2720.3,2719.4,5.37]
[1739995351306,0.7532,2720.4,2719.7,0.7743]
[1739995351510,0.7532,2720.7,2719.9,3.67654]
[1739995351679,3.67586,2720.5,2719.9,3.67654]
[1739995352008,3.67586,2720.5,2719.7,4.45109]
[1739995352212,3.6764,2720.1,2719.4,13.51356]
[1739995352364,0.7541,2720.0,2719.4,5.37]
[1739995352559,3.67695,2719.7,2719.1,0.7892]
[1739995353104,1.0271,2720.0,2719.1,0.7892]
[1739995353286,4.7036,2720.0,2719.2,3.67753]
[1739995353486,4.90096,2720.0,2719.3,3.6773]
[1739995353685,3.67676,2719.8,2719.2,3.67743]
[1739995353886,3.67692,2719.7,2719.1,0.7892]
[1739995354107,3.67715,2719.5,2719.0,5.37]
[1739995354275,0.7738,2719.4,2719.0,5.37]
[1739995354779,4.45062,2719.8,2719.1,3.67768]
[1739995354965,4.45062,2719.8,2719.1,3.67757]
[1739995355404,0.7738,2719.8,2719.0,6.356333]
[1739995355610,3.94954,2720.0,2719.3,3.6774]
[1739995356110,3.94952,2720.0,2719.2,3.67752]
[1739995356282,3.67685,2719.8,2719.3,3.67739]
[1739995356482,8.151522,2720.0,2719.3,3.67739]
[1739995356695,4.474942,2720.0,2719.3,3.67739]
[1739995356998,0.525422,2720.0,2719.3,3.67734]
[1739995357201,5.25414,2720.1,2719.4,4.43396]
[1739995357365,0.7547,2720.1,2719.5,3.67707]
[1739995357803,0.7547,2720.1,2719.6,3.677]
[1739995358024,3.67626,2720.2,2719.6,3.67693]
[1739995358225,3.6764,2720.1,2719.4,4.43388]
[1739995358602,4.683526,2720.2,2719.4,4.43388]
[1739995358901,3.67647,2720.0,2719.4,4.43388]
[1739995359205,4.44615,2719.8,2719.2,3.67753]
[1739995360393,4.44615,2719.8,2719.2,3.67745]
[1739995360590,4.44615,2719.8,2719.2,4.7566283]
[1739995360793,8.12298,2719.8,2719.2,4.7566283]
[1739995361018,4.44615,2719.8,2719.2,4.7566283]
[1739995362029,0.7694,2719.8,2719.2,1.0791783]
[1739995362227,3.67657,2720.0,2719.5,3.67707]
[1739995362899,13.49815,2720.4,2719.6,0.8272]
[1739995363229,3.67609,2720.3,2719.7,3.67677]
[1739995364226,3.67622,2720.2,2719.7,3.67677]
[1739995364431,3.67622,2720.2,2719.6,4.5042]
[1739995364724,1.0591,2720.4,2719.7,4.5316467]
[1739995364924,0.7861,2720.6,2719.9,3.67658]
[1739995365228,7.35207,2720.4,2719.9,3.67658]
[1739995365427,3.67607,2720.3,2719.7,8.2084167]
[1739995365665,3.67607,2720.3,2719.7,4.5316467]
[1739995365877,3.67607,2720.3,2719.8,4.74958467]
[1739995366570,3.67591,2720.5,2719.9,3.67653]
[1739995366943,0.38351911,2720.2,2719.9,3.67653]
[1739995367129,0.38351911,2720.2,2719.8,4.74961467]
[1739995367330,0.38351911,2720.2,2719.9,3.67659]
[1739995367527,0.38351911,2720.2,2719.9,4.51921647]
[1739995368035,0.38351911,2720.2,2720.0,3.67646]
[1739995368836,0.38351911,2720.2,2719.9,4.51921647]
[1739995369037,0.38351911,2720.2,2719.9,9.88921647]
[1739995370184,0.38351911,2720.2,2719.9,5.37]
[1739995371293,4.49729,2720.1,2719.9,5.37]
[1739995371450,3.67647,2720.0,2719.9,5.37]
[1739995372360,4.49729,2720.1,2719.9,5.37]
[1739995372559,4.05978911,2720.2,2719.9,5.37]
[1739995373093,0.38351911,2720.2,2719.9,5.37]
[1739995373599,3.67633,2720.1,2719.9,5.37]
[1739995374106,3.67647,2720.0,2719.9,5.37]
[1739995374996,3.67647,2720.0,2719.4,4.43637]
[1739995375163,3.67663,2719.9,2719.4,5.784756]
[1739995376264,3.67663,2719.9,2719.4,2.107486]
[1739995376468,3.67701,2719.6,2719.2,5.37]
[1739995376883,0.7768,2719.8,2719.2,5.37]
[1739995376884,4.45362,2719.8,2719.2,9.04753]
[1739995377080,3.67682,2719.8,2719.2,9.04753]
[1739995377299,3.67684,2719.8,2719.2,9.04753]
[1739995377484,3.67682,2719.8,2719.2,10.403285]
[1739995377691,3.67682,2719.8,2719.2,10.403215]
[1739995378177,3.67674,2719.8,2719.3,3.6774]
[1739995378377,7.35331,2719.9,2719.3,3.6774]
[1739995378572,3.67674,2719.8,2719.3,4.9645998]
[1739995378791,3.67674,2719.8,2719.3,1.2871998]
[1739995379098,3.67693,2719.7,2719.2,5.37]
[1739995379306,3.67668,2719.9,2719.2,9.04754]
[1739995379465,3.67668,2719.9,2719.3,3.67733]
[1739995379800,3.67662,2719.9,2719.3,3.67734]
[1739995379999,3.67662,2719.9,2719.4,3.67723]
[1739995380174,0.8011,2720.0,2719.2,5.37]
[1739995380495,3.67635,2720.1,2719.5,3.67707]
[1739995380662,3.67649,2720.0,2719.5,3.67707]
[1739995381062,0.38351911,2720.2,2719.9,3.67652]
[1739995381264,0.38351911,2720.2,2719.9,5.37]
[1739995381461,0.38351911,2720.2,2720.0,0.761]
[1739995381698,4.05971911,2720.2,2719.9,5.37]
[1739995381877,0.38351911,2720.2,2719.9,5.37]
[1739995382278,0.38351911,2720.2,2720.0,0.537]
[1739995382463,0.38351911,2720.2,2720.0,1.3521]
[1739995382668,0.38351911,2720.2,2720.0,0.537]
[1739995383597,3.6758,2720.5,2720.0,0.537]
[1739995383895,3.67574,2720.6,2720.0,0.537]
[1739995384103,3.67574,2720.6,2720.1,0.958353]
[1739995384508,7.35151,2720.6,2720.1,0.958353]
[1739995384821,3.67581,2720.5,2720.1,0.958353]
[1739995385184,3.67574,2720.6,2720.1,4.634663]
[1739995385385,3.67574,2720.6,2720.1,0.958353]
[1739995385599,3.67579,2720.5,2720.1,0.958353]
[1739995386225,1.56575173,2720.7,2720.1,0.958353]
[1739995386411,3.67601,2720.4,2720.1,0.958353]
[1739995386996,7.35202,2720.4,2720.1,0.958353]
[1739995387327,3.67601,2720.4,2720.1,0.958353]
[1739995387831,3.6763,2720.2,2720.0,0.537]
[1739995388065,3.67644,2720.1,2719.9,5.37]
[1739995388334,3.67667,2719.9,2719.5,0.8017]
[1739995388514,3.67685,2719.8,2719.5,0.8017]
[1739995388715,3.67667,2719.9,2719.5,0.8017]
[1739995389135,0.272,2720.1,2719.5,4.47877]
[1739995389312,3.94841,2720.1,2719.6,0.447877]
[1739995389507,3.67653,2720.0,2719.6,0.447877]
[1739995389698,3.67662,2719.9,2719.6,0.447877]
[1739995389898,3.67674,2719.8,2719.3,1.42593]
[1739995390101,0.272,2720.1,2719.3,1.42593]
[1739995390440,0.7737,2719.8,2719.3,4.48306]
[1739995390593,7.35338,2719.9,2719.4,3.67727]
[1739995390791,7.35338,2719.9,2719.3,4.48311]
[1739995390792,3.67676,2719.8,2719.3,4.48311]
[1739995391039,3.67667,2719.9,2719.3,0.8057]
[1739995391345,3.67714,2719.5,2719.3,0.8057]
[1739995391513,3.67714,2719.5,2719.2,5.37]
[1739995391713,3.67714,2719.5,2719.2,5.98987]
[1739995391924,0.7797,2719.6,2719.2,5.98987]
[1739995392245,3.67721,2719.5,2719.2,5.98987]
[1739995392411,3.67728,2719.4,2719.2,5.37]
[1739995392612,3.67696,2719.7,2719.2,5.37]
[1739995392920,3.67716,2719.5,2719.2,5.37]
[1739995393301,3.67741,2719.3,2719.2,5.37]
[1739995393502,3.67755,2719.2,2718.7,5.37]
[1739995393702,3.67769,2719.1,2718.7,0.987799]
[1739995394032,3.67806,2718.9,2718.4,6.1995]
[1739995394344,7.35574,2719.0,2718.4,6.1995]
[1739995394846,3.67795,2718.9,2718.4,6.1995]
[1739995395048,3.67795,2718.9,2718.4,7.187315]
[1739995395199,3.6781,2718.8,2718.4,7.187315]
[1739995395540,3.67795,2718.9,2718.4,7.187315]
[1739995395837,4.43486,2718.8,2718.4,5.37]
[1739995396211,0.7567,2718.8,2718.4,5.37]
[1739995396413,4.43486,2718.8,2718.4,5.37]
[1739995396935,8.11306,2718.8,2718.4,5.37]
[1739995397299,4.43486,2718.8,2718.4,5.37]
[1739995398422,3.67823,2718.7,2718.4,5.37]
[1739995398605,4.43486,2718.8,2718.4,5.37]
[1739995398800,3.67822,2718.7,2718.2,4.43968]
[1739995399013,3.67822,2718.7,2718.2,6.680553]
[1739995399714,3.67822,2718.7,2718.2,3.001673]
[1739995399925,3.67847,2718.6,2718.2,0.7608]
[1739995400125,3.67847,2718.6,2718.0,0.8082]
[1739995400301,3.13872534,2718.7,2718.0,4.48725]
[1739995400496,6.81703534,2718.7,2718.0,4.48725]
[1739995400803,3.67838,2718.6,2718.0,4.48725]
[1739995401004,3.6785,2718.5,2718.0,0.8082]
[1739995401537,3.67832,2718.7,2718.1,3.67903]
[1739995402142,0.38369069,2719.0,2718.6,0.7827]
[1739995402507,0.38369069,2719.0,2718.6,4.46098]
[1739995403401,0.38369069,2719.0,2718.9,3.67795]
[1739995403601,0.38369069,2719.0,2718.9,4.46065]
[1739995403801,0.38369069,2719.0,2718.9,11.181521]
[1739995404108,0.38369069,2719.0,2718.9,17.32024634]
[1739995406040,0.38369069,2719.0,2718.9,11.181521]
[1739995407504,0.38369069,2719.0,2718.7,3.6782]
[1739995407910,0.38369069,2719.0,2718.7,3.67815]
[1739995408106,0.38369069,2719.0,2718.9,3.67795]
[1739995409446,0.38369069,2719.0,2718.9,9.87175]
[1739995412550,0.38369069,2719.0,2718.9,12.87175]
[1739995412731,0.38369069,2719.0,2718.9,14.91599314]
[1739995414520,6.9e-07,2719.0,2718.9,14.91599314]
[1739995418989,6.9e-07,2719.0,2718.9,23.83599314]
[1739995419295,6.9e-07,2719.0,2718.9,23.93599314]
[1739995419496,8.49872534,2721.0,2720.3,3.67595]
[1739995419497,0.7718,2720.7,2720.3,3.67595]
[1739995419784,1.31615324,2720.7,2720.2,3.67619]
[1739995419959,4.44739,2720.7,2720.1,3.67633]
[1739995420546,0.7718,2720.7,2720.3,3.67606]
[1739995420750,0.7718,2720.7,2720.4,3.67589]
[1739995420984,0.7718,2720.7,2719.9,5.37]
[1739995420985,0.75234069,2720.9,2720.8,3.67538]
[1739995421301,0.777,2721.0,2720.8,3.67538]
[1739995421458,0.777,2721.0,2720.6,3.67554]
[1739995421649,0.777,2721.0,2720.5,3.67573]
[1739995422459,0.777,2721.0,2720.6,3.67558]
[1739995424387,0.777,2721.0,2720.4,12.72169]
[1739995424550,0.777,2721.0,2720.4,9.0458]
[1739995424751,0.777,2721.0,2720.5,3.67578]
[1739995425184,0.73371987,2721.2,2720.8,3.67537]
[1739995425489,0.777,2721.3,2721.0,3.67502]
[1739995428123,0.777,2721.3,2720.9,9.04524]
[1739995428417,0.777,2721.3,2721.0,3.6751]
[1739995428821,0.777,2721.3,2720.9,5.37]
[1739995430026,5.264354,2721.3,2720.9,5.37]
[1739995430324,0.8003,2721.1,2720.9,5.37]
[1739995431550,0.8003,2721.1,2720.7,3.67544]
[1739995432615,0.8003,2721.1,2720.6,5.37]
[1739995432784,0.8003,2721.1,2720.6,9.04564]
[1739995433716,0.8003,2721.1,2720.7,3.67549]
[1739995434121,0.8003,2721.1,2720.6,9.04558]
[1739995434620,0.8003,2721.1,2720.8,3.67532]
[1739995434827,0.8003,2721.1,2720.6,12.72125]
[1739995435122,0.8003,2721.1,2720.7,3.67546]
[1739995435326,0.8003,2721.1,2720.8,3.67538]
[1739995435782,0.8003,2721.1,2720.8,3.67533]
[1739995435988,0.7781,2721.3,2720.8,3.67533]
[1739995436225,0.7781,2721.3,2720.9,3.67524]
[1739995437394,0.7781,2721.3,2720.8,3.67537]
[1739995437588,0.7525,2721.6,2720.9,3.67517]
[1739995437788,3.67457,2721.5,2720.9,9.04517]
[1739995438189,3.67464,2721.4,2720.9,9.04517]
[1739995438731,4.42729,2721.3,2720.9,5.37]
[1739995439226,0.7525,2721.3,2720.9,5.37]
[1739995439538,0.7525,2721.3,2720.9,9.04518]
[1739995440234,4.42723,2721.3,2720.9,5.37]
[1739995440420,4.869953,2721.3,2720.9,5.37]
[1739995440798,8.10207,2721.3,2720.9,5.37]
[1739995441034,3.67493,2721.2,2720.9,5.37]
[1739995443295,4.42723,2721.3,2720.9,5.37]
[1739995443296,0.7525,2721.3,2720.9,5.37]
[1739995443496,0.7525,2721.3,2720.9,9.04518]
[1739995444328,4.42726,2721.3,2720.9,5.37]
[1739995444542,8.10207,2721.3,2720.9,5.37]
[1739995444847,5.237467,2721.3,2720.9,5.37]
[1739995445143,3.67501,2721.1,2720.9,5.37]
[1739995445935,0.7841,2720.9,2720.3,5.37]
[1739995446122,3.67565,2720.7,2720.0,9.04645]
[1739995446323,3.67579,2720.5,2720.0,5.37]
[1739995446522,4.49422,2720.4,2719.6,0.771]
[1739995446721,4.49422,2720.4,2719.6,4.44794]
[1739995446923,0.8182,2720.4,2719.7,3.67687]
[1739995447138,0.8182,2720.7,2720.1,0.771]
[1739995447443,1.0892,2721.0,2720.4,3.67586]
[1739995447611,4.76434,2721.0,2720.4,3.67586]
[1739995448238,3.67542,2720.8,2720.3,5.37]
[1739995449150,3.6758,2720.5,2720.3,5.37]
[1739995449326,0.8182,2720.4,2720.3,5.37]
[1739995449527,0.8182,2720.4,2719.9,9.04657]
[1739995449745,0.8182,2720.4,2719.9,10.395995]
[1739995450046,0.8182,2720.4,2719.9,5.37]
[1739995450256,4.49414,2720.4,2719.9,5.37]
[1739995450752,3.13872534,2720.3,2719.7,5.37]
[1739995450956,1.3682,2720.2,2719.5,3.67706]
[1739995451251,3.67636,2720.1,2719.5,4.489585]
[1739995451641,1.6392,2720.2,2719.5,8.166645]
[1739995451852,1.0892,2720.2,2719.6,3.67693]
[1739995452061,1.0768,2720.5,2719.5,0.812525]
[1739995452273,1.0768,2720.5,2719.9,3.67653]
[1739995452413,3.67595,2720.4,2719.9,3.67653]
[1739995452616,3.67595,2720.4,2719.7,7.35351]
[1739995453187,3.67594,2720.4,2719.8,3.67664]
[1739995453380,0.8058,2720.5,2720.0,3.6764]
[1739995453518,0.8058,2720.5,2719.9,0.735338]
[1739995453519,0.8058,2720.5,2720.1,3.67633]
[1739995454054,4.48166,2720.5,2719.9,3.67652]
[1739995454655,4.48166,2720.5,2720.0,3.67642]
[1739995454841,4.48166,2720.5,2719.9,3.67652]
[1739995455041,4.48166,2720.5,2719.9,7.35305]
[1739995455242,4.48166,2720.5,2719.9,3.67652]
[1739995455439,3.67593,2720.4,2719.7,9.04679]
[1739995455631,3.67593,2720.4,2719.8,3.67669]
[1739995456926,7.35196,2720.4,2719.8,3.67669]
[1739995457124,3.67608,2720.3,2719.7,10.027769]
[1739995457320,3.67608,2720.3,2719.7,5.37]
[1739995457321,3.67647,2720.0,2719.7,5.37]
[1739995457558,3.67667,2719.9,2719.7,5.37]
[1739995458225,3.67674,2719.8,2719.7,5.37]
[1739995458863,4.49311,2720.0,2719.7,5.37]
[1739995459379,8.1697,2720.0,2719.7,5.37]
[1739995459525,3.67662,2719.9,2719.7,5.37]
[1739995459923,3.67674,2719.8,2719.7,5.37]
[1739995460237,0.7621,2719.5,2719.0,5.37]
[1739995460622,0.7621,2719.5,2719.0,9.04775]
[1739995460840,0.7621,2719.5,2719.1,3.67765]
[1739995461219,0.7621,2719.5,2719.0,5.37]
[1739995461425,0.271,2719.8,2719.4,3.67728]
[1739995461727,3.67688,2719.7,2719.2,3.67743]
[1739995462034,3.67688,2719.7,2719.2,4.949951]
[1739995462762,0.8318,2719.6,2719.0,9.04774]
[1739995463260,4.50881,2719.6,2719.1,3.67758]
[1739995464570,4.50881,2719.6,2719.0,9.0478]
[1739995464774,3.67716,2719.5,2719.0,9.0478]
[1739995464979,3.67716,2719.5,2719.0,5.37]
[1739995465180,0.8318,2719.6,2719.0,5.37]
[1739995465467,3.67715,2719.5,2719.0,5.37]
[1739995465670,3.67729,2719.4,2719.0,5.37]
[1739995467067,0.8318,2719.6,2719.2,3.67754]
[1739995467274,0.7794,2719.8,2719.5,3.67714]
[1739995467489,0.7794,2720.1,2719.6,3.67694]
[1739995467635,4.86115975,2721.0,2720.3,3.67606]
[1739995467636,0.7794,2720.4,2720.3,3.67606]
[1739995467967,0.7794,2720.4,2719.9,3.67652]
[1739995468166,3.13872534,2720.2,2719.7,3.67687]
[1739995468973,3.67613,2720.3,2719.7,3.67687]
[1739995469142,3.67613,2720.3,2719.7,5.027253]
[1739995469350,4.45534,2720.4,2719.8,3.67669]
[1739995469548,3.6761,2720.3,2719.7,5.027123]
[1739995469766,0.7794,2720.4,2719.7,1.350383]
[1739995469971,0.7794,2720.4,2719.9,3.67653]
[1739995470545,0.7794,2720.4,2719.6,6.1499]
[1739995470761,0.7794,2720.4,2719.8,3.67673]
[1739995470963,6.1457,2720.7,2720.1,4.47556]
[1739995471173,9.82129,2720.7,2720.1,0.7993]
[1739995471393,6.81447534,2720.6,2719.9,4.47582]
[1739995471972,3.67581,2720.5,2719.9,4.47582]
[1739995472174,3.67602,2720.4,2719.7,3.67676]
[1739995472382,3.67631,2720.2,2719.6,6.1693]
[1739995472583,7.35262,2720.2,2719.6,5.37]
[1739995472982,0.7857,2720.0,2719.6,5.37]
[1739995473293,0.7857,2720.0,2719.6,9.04699]
[1739995473480,0.7857,2720.0,2719.6,10.319394]
[1739995473793,3.96292534,2720.3,2719.7,3.67686]
[1739995473991,0.8242,2720.3,2719.7,3.67686]
[1739995474177,0.8242,2720.3,2719.9,3.67653]
[1739995474386,0.8242,2720.3,2720.0,3.67645]
[1739995474716,0.8242,2720.5,2720.0,3.6764]
[1739995475016,4.5,2720.5,2720.0,3.6764]
[1739995475196,3.67614,2720.3,2719.8,3.67664]
[1739995475361,6.81486534,2720.3,2719.7,4.50283]
[1739995476361,3.13872534,2720.3,2719.8,3.6767]
[1739995476674,0.8242,2720.5,2719.9,3.67658]
[1739995477087,0.8242,2720.5,2720.0,3.67647]
[1739995477398,4.50002,2720.5,2720.0,3.67647]
[1739995477574,0.8242,2720.5,2720.0,3.67636]
[1739995477908,0.8242,2720.5,2720.0,7.35273]
[1739995478795,0.8242,2720.5,2720.0,3.67636]
[1739995479097,4.50002,2720.5,2720.0,3.67636]
[1739995479300,0.8242,2720.5,2719.9,3.67659]
[1739995479464,3.67593,2720.4,2719.8,7.3533]
[1739995479664,3.67593,2720.4,2719.9,3.67659]
[1739995480199,3.67593,2720.4,2719.7,0.826]
[1739995480422,3.67593,2720.4,2719.8,0.6196]
[1739995480564,0.8242,2720.5,2719.8,0.6196]
[1739995480766,0.8242,2720.5,2720.0,3.67637]
[1739995481089,4.49999,2720.5,2720.0,3.67637]
[1739995481699,4.49999,2720.5,2719.9,3.67659]
[1739995482208,4.5001,2720.5,2719.9,3.67659]
[1739995482407,3.67593,2720.4,2719.9,3.67653]
[1739995482571,3.67593,2720.4,2719.9,7.35304]
[1739995482771,8.17592,2720.5,2720.0,3.67641]
[1739995482975,3.67593,2720.4,2719.9,3.67651]
[1739995485203,4.45327,2720.2,2719.6,5.37]
[1739995485378,4.45327,2720.2,2719.7,3.67683]
[1739995485379,0.777,2720.2,2719.7,3.67683]
[1739995485842,4.4532,2720.2,2719.7,3.67683]
[1739995486123,3.67634,2720.1,2719.6,9.04699]
[1739995486334,4.45321,2720.2,2719.7,3.67686]
[1739995486632,4.45327,2720.2,2719.7,3.67681]
[1739995488125,0.777,2720.2,2719.8,3.67673]
[1739995488294,0.777,2720.2,2719.7,3.67681]
[1739995489031,4.45324,2720.2,2719.7,3.67681]
[1739995495352,4.45324,2720.2,2719.8,3.67668]
[1739995495645,4.45324,2720.2,2719.7,3.67681]
[1739995496207,0.72230653,2720.4,2720.0,3.67635]
[1739995496531,0.7982,2720.5,2720.1,3.67626]
[1739995497640,4.474,2720.5,2720.0,3.67638]
[1739995499644,0.7982,2720.5,2720.0,3.67637]
[1739995500038,0.7982,2720.5,2719.8,1.705681]
[1739995500238,0.7982,2720.5,2720.2,3.67612]
[1739995500444,1.074,2721.0,2720.4,3.67593]
[1739995500646,1.074,2721.0,2720.5,3.67572]
[1739995501391,0.803,2721.0,2720.6,3.67564]
[1739995501547,0.803,2721.0,2720.6,3.67562]
[1739995501746,1.53940154,2721.0,2720.6,3.67562]
[1739995501945,1.53940154,2721.0,2720.5,3.67578]
[1739995502178,5.21452154,2721.0,2720.2,10.230702]
[1739995502384,5.21452154,2721.0,2720.3,1.0230702]
[1739995502385,0.803,2721.0,2720.3,1.0230702]
[1739995502685,0.803,2721.0,2720.7,3.67546]
[1739995502979,0.803,2721.0,2720.3,1.0230702]
[1739995503183,0.803,2721.0,2720.6,3.67559]
[1739995503487,0.803,2721.2,2720.9,3.67518]
[1739995503782,1.54846472,2721.4,2720.9,3.67518]
[1739995504087,1.54846472,2721.4,2721.0,3.67507]
[1739995504657,0.803,2721.4,2721.0,3.67507]
[1739995506292,0.803,2721.4,2720.9,4.042698]
[1739995506607,0.803,2721.4,2721.0,3.6751]
[1739995506907,0.803,2721.4,2721.0,4.4468798]
[1739995507367,0.7578,2721.6,2721.3,3.67471]
[1739995507566,0.7578,2721.6,2721.1,3.67488]
[1739995507777,0.7578,2721.6,2721.1,3.67487]
[1739995508108,3.13872534,2721.3,2721.0,0.7717798]
[1739995508315,0.7578,2721.2,2721.0,0.7717798]
[1739995509714,0.7578,2721.2,2721.0,4.4468898]
[1739995510299,0.7578,2721.2,2721.0,0.7717798]
[1739995510615,0.7578,2721.2,2720.9,0.367518]
[1739995510913,0.7578,2721.2,2720.8,5.37]
[1739995511600,0.7578,2721.2,2720.8,3.67538]
[1739995512298,0.7869,2721.4,2720.6,5.37]
[1739995512597,0.7869,2721.4,2721.1,3.67491]
[1739995512975,0.7869,2721.4,2721.1,7.34981]
[1739995513208,0.7869,2721.6,2721.2,3.67484]
[1739995513406,0.7869,2721.6,2721.2,3.67472]